bitfinex/quotes_SOLUSD_20250920
["timestamp","ask_amount","ask_price","bid_price","bid_amount"]
[1758337549602,73.46143916,238.44,238.43,1e-08]
[1758337549908,73.17711602,238.44,238.43,0.66000001]
[1758337550482,39.89406026,238.44,238.43,0.66000001]
[1758337550688,73.17711602,238.44,238.43,0.66000001]
[1758337552007,39.89406026,238.44,238.43,0.66000001]
[1758337552197,73.17711602,238.44,238.43,0.66000001]
[1758337555012,41.15711602,238.44,238.43,0.66000001]
[1758337559712,4.50013307,238.44,238.43,0.66000001]
[1758337559919,1.26305576,238.45,238.43,0.66000001]
[1758337560113,2.81787043,238.44,238.43,0.66000001]
[1758337562118,4.08092619,238.44,238.43,0.66000001]
[1758337565819,36.96269373,238.44,238.43,0.66000001]
[1758337567615,10.95094406,238.44,238.43,1e-08]
[1758337567813,14.4732821,238.44,238.43,1e-08]
[1758337568402,43.01094406,238.44,238.43,1e-08]
[1758337568590,10.95094406,238.44,238.43,1e-08]
[1758337568791,43.01094406,238.44,238.43,1e-08]
[1758337569599,31.2,238.42,238.41,0.1]
[1758337569793,76.21233374,238.42,238.41,0.1]
[1758337570108,73.38747237,238.42,238.41,0.1]
[1758337570300,75.06987652,238.42,238.41,0.1]
[1758337571741,79.26415552,238.42,238.41,0.1]
[1758337572229,82.79844971,238.42,238.41,0.1]
[1758337572602,82.79844971,238.42,238.37,0.2]
[1758337572603,31.2,238.38,238.37,0.2]
[1758337572923,31.2,238.38,238.31,0.1]
[1758337572924,0.28432314,238.37,238.31,0.1]
[1758337573105,1.26305576,238.32,238.31,0.1]
[1758337573297,1.26305576,238.32,238.31,0.8]
[1758337573703,36.65909469,238.32,238.31,0.1]
[1758337573902,5.45909469,238.32,238.31,0.1]
[1758337574424,8.28599632,238.32,238.31,0.1]
[1758337576229,8.28599632,238.32,238.31,0.8]
[1758337578117,4.08995739,238.32,238.31,0.8]
[1758337581612,32.46305576,238.32,238.31,0.8]
[1758337582429,1.26305576,238.34,238.31,4.9961402]
[1758337582630,1.26305576,238.34,238.32,0.7]
[1758337583714,1.97460992,238.34,238.32,0.7]
[1758337585134,31.2,238.34,238.32,0.7]
[1758337587035,37.36980081,238.37,238.32,0.7]
[1758337587237,2.82145921,238.36,238.32,0.7]
[1758337589247,37.36980081,238.37,238.32,0.7]
[1758337589743,38.07980081,238.37,238.33,0.71]
[1758337591123,31.2,238.35,238.34,0.71]
[1758337591315,37.37012072,238.35,238.31,0.1]
[1758337591561,1.97460992,238.32,238.31,0.1]
[1758337592035,2.68460992,238.32,238.31,0.1]
[1758337593931,13.35323255,238.32,238.31,0.1]
[1758337594136,16.17479391,238.32,238.31,0.1]
[1758337595132,48.27479391,238.32,238.31,0.1]
[1758337598641,47.56479391,238.32,238.31,0.1]
[1758337600750,48.27479391,238.32,238.31,0.1]
[1758337602046,15.46479391,238.32,238.31,0.1]
[1758337602254,47.56479391,238.32,238.31,0.1]
[1758337603338,15.46479391,238.32,238.31,0.1]
[1758337603542,47.56479391,238.32,238.31,0.1]
[1758337603945,47.54479391,238.32,238.31,0.81]
[1758337604149,4.79617128,238.32,238.31,0.81]
[1758337604957,4.79247713,238.32,238.31,0.81]
[1758337606039,4.79247713,238.32,238.31,0.1]
[1758337606557,8.98851606,238.32,238.31,0.1]
[1758337607156,40.18851606,238.32,238.31,0.1]
[1758337607546,34.01786721,238.32,238.31,0.81]
[1758337607747,31.2,238.32,238.31,0.81]
[1758337609869,3.67644913,238.4,238.31,6.98075238]
[1758337609870,31.2,238.34,238.31,6.98075238]
[1758337610034,31.2,238.34,238.32,1.97460992]
[1758337610231,31.2,238.34,238.33,0.71]
[1758337611341,31.2,238.36,238.33,0.71]
[1758337611667,34.02260599,238.35,238.33,0.71]
[1758337611854,31.2,238.35,238.33,0.71]
[1758337612646,4.29614246,238.38,238.34,1.97460992]
[1758337612850,2.82384025,238.37,238.35,0.71]
[1758337613238,31.2,238.36,238.35,0.71]
[1758337613437,34.02384025,238.36,238.35,0.71]
[1758337613638,2.82384025,238.36,238.35,0.71]
[1758337614456,31.2,238.38,238.35,2.68460992]
[1758337614661,2.82384025,238.37,238.36,0.71]
[1758337618264,34.02384025,238.37,238.36,0.71]
[1758337620673,2.82384025,238.37,238.34,0.7]
[1758337620872,2.82384025,238.36,238.35,0.7]
[1758337621368,7.68924794,238.36,238.31,0.1]
[1758337621558,3.49384025,238.35,238.31,0.8]
[1758337621740,2.82384025,238.34,238.31,0.1]
[1758337621947,2.82384025,238.33,238.32,0.7]
[1758337622149,2.82384025,238.35,238.32,0.7]
[1758337622349,2.82384025,238.34,238.32,0.7]
[1758337622563,2.82384025,238.33,238.32,0.7]
[1758337622770,2.82384025,238.35,238.32,0.7]
[1758337623074,2.82384025,238.34,238.33,0.7]
[1758337624577,2.82384025,238.34,238.32,0.7]
[1758337624870,2.82384025,238.33,238.32,0.7]
[1758337625070,2.82384025,238.35,238.32,0.7]
[1758337625269,2.82384025,238.34,238.31,0.1]
[1758337625450,2.82384025,238.33,238.31,0.1]
[1758337625651,2.82384025,238.34,238.31,0.1]
[1758337625872,2.82384025,238.33,238.31,0.8]
[1758337626076,2.82384025,238.34,238.31,0.8]
[1758337626250,2.82384025,238.33,238.31,0.8]
[1758337626463,2.82384025,238.34,238.31,0.8]
[1758337626781,2.82384025,238.33,238.31,0.8]
[1758337626978,2.82384025,238.34,238.31,0.1]
[1758337627178,2.82384025,238.33,238.31,0.1]
[1758337627474,4.86554003,238.35,238.31,0.1]
[1758337627475,2.82384025,238.34,238.31,0.1]
[1758337627773,2.82384025,238.33,238.31,0.8]
[1758337627969,2.82384025,238.34,238.31,0.1]
[1758337628173,2.82384025,238.33,238.31,0.1]
[1758337628492,2.82384025,238.32,238.31,0.1]
[1758337628777,7.01956723,238.34,238.31,0.1]
[1758337628953,3.49384025,238.33,238.31,0.1]
[1758337629164,2.82384025,238.32,238.31,0.1]
[1758337629382,3.49384025,238.32,238.31,0.1]
[1758337630377,7.68987918,238.32,238.31,0.1]
[1758337633186,7.01987918,238.32,238.31,0.1]
[1758337634379,7.68987918,238.32,238.31,0.1]
[1758337635260,7.01987918,238.32,238.31,0.1]
[1758337635882,7.68987918,238.32,238.31,0.1]
[1758337636462,9.6644891,238.32,238.31,0.1]
[1758337636688,13.86181896,238.32,238.31,0.1]
[1758337638583,7.02117011,238.32,238.31,0.1]
[1758337640686,7.02117011,238.32,238.31,0.8]
[1758337640687,2.82384025,238.32,238.31,0.8]
[1758337641776,2.82384025,238.32,238.31,0.1]
[1758337641982,38.21987918,238.32,238.31,0.1]
[1758337642290,40.8644891,238.32,238.31,0.1]
[1758337642790,42.83909902,238.32,238.31,0.1]
[1758337643787,42.1286978,238.32,238.31,0.1]
[1758337647201,41.4586978,238.32,238.31,0.1]
[1758337656785,42.1386978,238.32,238.31,0.1]
[1758337658000,41.4586978,238.32,238.31,0.1]
[1758337661498,37.26265887,238.32,238.31,0.1]
[1758337661880,35.99845017,238.32,238.31,0.1]
[1758337663824,37.26265887,238.32,238.31,0.1]
[1758337664792,35.99845017,238.32,238.31,0.1]
[1758337665699,2.82384025,238.32,238.31,0.77]
[1758337666708,2.82384025,238.32,238.31,4.96621501]
[1758337667491,2.82384025,238.32,238.31,0.77]
[1758337669198,2.82384025,238.32,238.31,4.96621501]
[1758337671809,2.82384025,238.32,238.31,0.77]
[1758337673809,2.82384025,238.32,238.31,4.96621501]
[1758337678203,2.82384025,238.32,238.31,0.77]
[1758337681716,2.82384025,238.32,238.31,4.96621501]
[1758337685213,2.82384025,238.34,238.31,4.96621501]
[1758337685511,2.82384025,238.33,238.32,0.7]
[1758337686418,2.82384025,238.33,238.32,4.89603893]
[1758337688325,2.82384025,238.34,238.32,6.16024763]
[1758337688493,34.73428756,238.39,238.32,6.16024763]
[1758337688494,2.82384025,238.38,238.33,1.9642087]
[1758337688695,2.82384025,238.37,238.34,0.7]
[1758337688894,2.82384025,238.36,238.34,0.7]
[1758337689116,2.82384025,238.35,238.34,0.7]
[1758337689321,2.82384025,238.38,238.33,1.2642087]
[1758337689506,2.82384025,238.37,238.34,4.19568683]
[1758337689709,2.82384025,238.36,238.35,0.7]
[1758337689918,2.82384025,238.37,238.35,0.7]
[1758337690109,2.82384025,238.36,238.34,4.19568683]
[1758337690303,2.82384025,238.37,238.34,4.89568683]
[1758337690503,2.82384025,238.36,238.35,0.7]
[1758337690702,2.82384025,238.37,238.35,4.89547575]
[1758337690904,2.82384025,238.36,238.35,4.89547575]
[1758337691218,2.82384025,238.37,238.35,4.89547575]
[1758337693629,2.82384025,238.37,238.36,0.7]
[1758337693931,2.82384025,238.38,238.36,0.7]
[1758337694123,2.82384025,238.37,238.36,0.7]
[1758337694305,2.82384025,238.38,238.36,0.7]
[1758337694618,2.82384025,238.37,238.36,0.7]
[1758337694820,2.82384025,238.38,238.36,0.7]
[1758337695124,2.82384025,238.38,238.36,4.89530144]
[1758337697807,2.82384025,238.38,238.35,4.1955108]
[1758337698125,2.82384025,238.38,238.36,0.7]
[1758337698807,31.2,238.36,238.31,0.1]
[1758337699003,1.2642087,238.34,238.31,0.1]
[1758337699512,1.9242087,238.34,238.31,0.1]
[1758337699705,0.66,238.33,238.31,0.1]
[1758337700005,4.85639022,238.33,238.31,0.1]
[1758337700622,4.19639022,238.33,238.31,0.1]
[1758337701418,2.82384025,238.34,238.31,4.29619949]
[1758337701726,7.02023047,238.34,238.32,0.7]
[1758337701913,7.02023047,238.34,238.31,4.29619949]
[1758337702119,34.68384025,238.34,238.31,4.29619949]
[1758337702319,2.82384025,238.33,238.31,4.29619949]
[1758337702623,2.82384025,238.33,238.31,0.1]
[1758337702803,3.48384025,238.33,238.31,0.1]
[1758337703426,4.74804895,238.32,238.31,0.1]
[1758337703619,8.94408788,238.32,238.31,0.1]
[1758337704002,13.14097165,238.32,238.31,0.1]
[1758337704341,7.02072402,238.32,238.31,4.29621501]
[1758337704531,2.82384025,238.33,238.31,4.29621501]
[1758337704738,2.82384025,238.32,238.31,4.29621501]
[1758337704929,7.02072402,238.33,238.31,6.26042371]
[1758337705134,34.02384025,238.36,238.31,5.56042371]
[1758337705422,4.29621501,238.34,238.32,4.89592481]
[1758337706624,7.12005526,238.34,238.32,4.89592481]
[1758337708837,4.29621501,238.34,238.33,0.69]
[1758337709028,7.12005526,238.34,238.33,0.69]
[1758337709229,2.82384025,238.34,238.33,0.69]
[1758337709424,34.02384025,238.36,238.33,0.69]
[1758337709612,7.01976506,238.35,238.33,4.88580912]
[1758337709933,2.82384025,238.35,238.33,4.88580912]
[1758337710536,2.82384025,238.35,238.34,0.69]
[1758337711007,2.82384025,238.36,238.34,0.69]
[1758337711211,8.9941815,238.36,238.35,0.69]
[1758337711434,31.2,238.38,238.35,0.69]
[1758337711627,2.82384025,238.37,238.36,0.69]
[1758337711807,9.70305356,238.39,238.36,1.97430232]
[1758337712006,2.82502989,238.38,238.36,1.97430232]
[1758337712239,0.71,238.42,238.37,0.69]
[1758337712435,2.82502989,238.41,238.37,0.69]
[1758337712623,2.82502989,238.4,238.38,4.1949828]
[1758337712933,2.82502989,238.41,238.39,1.97430232]
[1758337713144,2.82502989,238.45,238.4,1.97430232]
[1758337713317,2.82502989,238.46,238.42,1.97430232]
[1758337713512,34.02502989,238.46,238.38,14.6824398]
[1758337713715,38.93001269,238.45,238.4,1.97430232]
[1758337713935,3.53502989,238.44,238.4,2.66430232]
[1758337714444,2.82502989,238.44,238.41,2.66430232]
[1758337714736,2.82502989,238.44,238.42,4.194279]
[1758337715243,0.71,238.43,238.37,0.69]
[1758337715540,1.97430232,238.4,238.36,4.19533478]
[1758337715718,2.68430232,238.4,238.36,4.88533478]
[1758337716942,1.97430232,238.4,238.36,0.69]
[1758337717240,2.68430232,238.41,238.37,0.69]
[1758337718439,1.97430232,238.41,238.38,4.8849828]
[1758337718635,2.82502989,238.42,238.39,0.69]
[1758337718939,2.82502989,238.42,238.4,0.69]
[1758337719146,2.82502989,238.42,238.39,0.69]
[1758337719322,2.82502989,238.42,238.38,4.1949828]
[1758337719525,4.79933221,238.42,238.38,0.69]
[1758337720619,1.97430232,238.42,238.39,0.69]
[1758337720943,33.17430232,238.42,238.39,0.69]
[1758337721323,1.97430232,238.44,238.4,0.69]
[1758337721625,31.2,238.43,238.41,0.69]
[1758337721818,31.2,238.43,238.39,0.69]
[1758337722019,2.68430232,238.42,238.36,4.88517716]
[1758337722230,1.97430232,238.4,238.36,4.88517716]
[1758337722427,2.68430232,238.4,238.36,4.88517716]
[1758337724746,1.97430232,238.4,238.35,10.48870169]
[1758337724927,1.97430232,238.4,238.37,0.69]
[1758337725542,1.97430232,238.41,238.37,0.69]
[1758337725735,2.68430232,238.41,238.37,4.88510127]
[1758337726829,4.79493927,238.42,238.38,0.69]
[1758337727026,1.97430232,238.42,238.38,0.69]
[1758337727246,4.79493927,238.42,238.39,0.69]
[1758337727723,5.50493927,238.42,238.37,4.88510127]
[1758337728046,1.97430232,238.39,238.33,0.69]
[1758337728341,2.68430232,238.38,238.32,4.88603893]
[1758337729142,4.79493927,238.39,238.33,0.69]
[1758337729547,5.50493927,238.39,238.33,0.69]
[1758337730051,5.50493927,238.39,238.34,4.19568683]
[1758337730227,5.50493927,238.39,238.34,4.88568683]
[1758337730626,5.50493927,238.39,238.34,4.19568683]
[1758337730834,5.50493927,238.39,238.35,0.69]
[1758337731748,9.7006261,238.39,238.35,0.69]
[1758337732049,9.7006261,238.39,238.35,4.885509]
[1758337732856,8.9906261,238.39,238.36,0.69]
[1758337734332,6.16998915,238.39,238.36,4.88528442]
[1758337734536,1.97430232,238.39,238.36,4.88528442]
[1758337734728,31.91,238.41,238.36,4.88528442]
[1758337734729,4.79744982,238.4,238.36,4.88528442]
[1758337735037,4.79744982,238.4,238.37,0.69]
[1758337735038,35.99744982,238.4,238.37,0.69]
[1758337735346,37.36981132,238.4,238.37,0.69]
[1758337735545,33.17430232,238.4,238.37,0.69]
[1758337737058,33.89430232,238.4,238.35,0.66]
[1758337737248,0.72,238.39,238.34,4.19568683]
[1758337737550,0.72,238.39,238.34,4.85568683]
[1758337737755,2.69430232,238.39,238.35,0.66]
[1758337737927,0.72,238.39,238.35,0.66]
[1758337738126,2.69430232,238.39,238.35,0.66]
[1758337738756,2.69430232,238.39,238.35,4.85542574]
[1758337740456,36.57789858,238.46,238.36,0.66]
[1758337740660,1.97430232,238.4,238.35,4.19542574]
[1758337740852,2.65430232,238.4,238.36,0.72]
[1758337741341,1.97430232,238.38,238.35,4.19542574]
[1758337741542,2.65430232,238.38,238.35,4.19542574]
[1758337742045,1.97430232,238.39,238.35,4.91542574]
[1758337742252,2.65430232,238.39,238.35,4.91542574]
[1758337742646,0.68,238.38,238.35,4.19542574]
[1758337743349,0.68,238.38,238.35,4.91542574]
[1758337743748,1.97430232,238.39,238.35,4.91542574]
[1758337743948,2.65430232,238.39,238.35,4.91542574]
[1758337745163,1.97430232,238.39,238.35,4.19542574]
[1758337745467,4.79737951,238.4,238.36,0.72]
[1758337745643,4.79737951,238.4,238.35,4.19542574]
[1758337745846,1.97430232,238.4,238.37,0.72]
[1758337746055,1.97430232,238.4,238.37,4.9150743]
[1758337748761,1.97430232,238.4,238.35,0.72]
[1758337748946,2.65430232,238.39,238.34,4.19568683]
[1758337749147,0.68,238.38,238.34,4.91568683]
[1758337749346,2.65430232,238.38,238.34,4.91568683]
[1758337749562,7.01816917,238.4,238.32,4.91590835]
[1758337749563,1.97430232,238.36,238.32,4.91590835]
[1758337750267,1.97430232,238.35,238.32,4.91590835]
[1758337750569,1.97430232,238.35,238.33,0.72]
[1758337753464,0.68,238.35,238.33,4.19585759]
[1758337754050,1.97430232,238.36,238.33,4.19585759]
[1758337754450,2.65430232,238.36,238.33,4.19585759]
[1758337754666,2.65430232,238.36,238.33,0.72]
[1758337754966,1.97430232,238.36,238.33,0.72]
[1758337755548,1.97430232,238.36,238.32,4.19603893]
[1758337755757,1.97430232,238.38,238.33,0.72]
[1758337756073,1.97430232,238.39,238.33,0.72]
[1758337756259,2.82746617,238.4,238.33,0.72]
[1758337756462,2.82746617,238.39,238.33,2.69430232]
[1758337756662,4.80176849,238.4,238.35,4.1955108]
[1758337756863,2.82746617,238.39,238.36,0.72]
[1758337757077,2.82746617,238.4,238.36,0.72]
[1758337758263,2.82746617,238.4,238.37,4.19515878]
[1758337758464,2.82746617,238.4,238.38,0.72]
[1758337760283,2.82746617,238.39,238.38,4.9149828]
[1758337760469,2.82746617,238.4,238.38,4.9149828]
[1758337760670,2.82746617,238.39,238.38,4.9149828]
[1758337760878,2.82746617,238.4,238.38,4.9149828]
[1758337763982,2.82746617,238.4,238.38,4.1949828]
[1758337764182,2.82746617,238.4,238.39,0.72]
[1758337764494,2.82746617,238.41,238.39,0.72]
[1758337764676,2.82746617,238.4,238.39,0.72]
[1758337764985,2.82746617,238.41,238.39,0.72]
[1758337765189,2.82746617,238.4,238.39,4.91480682]
[1758337765366,2.82746617,238.41,238.39,4.91480682]
[1758337765692,2.82746617,238.42,238.39,4.19480682]
[1758337765895,3.53746617,238.44,238.39,4.19480682]
[1758337766101,2.82746617,238.43,238.4,0.71]
[1758337766283,2.82746617,238.42,238.41,0.71]
[1758337766481,2.82746617,238.44,238.41,0.71]
[1758337766786,2.82746617,238.43,238.4,1.97430232]
[1758337766994,31.2,238.46,238.41,0.71]
[1758337766995,2.82746617,238.45,238.41,0.71]
[1758337767174,2.82746617,238.44,238.42,4.194279]
[1758337767371,2.82746617,238.45,238.43,0.71]
[1758337768074,2.82746617,238.45,238.42,4.194279]
[1758337768283,2.82746617,238.45,238.43,0.71]
[1758337769411,2.82746617,238.45,238.43,4.19410309]
[1758337769786,2.82746617,238.45,238.43,4.90410309]
[1758337770492,31.2,238.46,238.43,4.90410309]
[1758337771870,31.2,238.46,238.44,0.71]
[1758337772274,31.2,238.46,238.41,14.68059225]
[1758337772472,31.2,238.47,238.42,0.71]
[1758337772673,2.82586415,238.46,238.42,1.97246817]
[1758337772875,2.82586415,238.46,238.43,0.71]
[1758337773289,31.2,238.47,238.43,0.71]
[1758337773593,2.82586415,238.46,238.43,0.71]
[1758337773972,2.82586415,238.48,238.44,4.19392719]
[1758337774173,4.08833232,238.51,238.45,0.71]
[1758337774998,1.26246817,238.51,238.45,0.71]
[1758337775383,4.08833232,238.51,238.46,4.19357544]
[1758337775584,1.97246817,238.51,238.47,0.71]
[1758337775779,1.26246817,238.51,238.47,0.71]
[1758337775983,4.08833232,238.51,238.48,0.71]
[1758337776602,2.82586415,238.51,238.48,0.71]
[1758337777107,3.53586415,238.51,238.49,4.19304792]
[1758337778078,2.82586415,238.51,238.49,4.19304792]
[1758337778285,4.79833232,238.55,238.5,0.71]
[1758337778486,1.97246817,238.55,238.51,0.71]
[1758337778788,1.26246817,238.55,238.52,0.71]
[1758337778988,1.26246817,238.55,238.53,4.19234477]
[1758337779391,1.26246817,238.56,238.53,4.19234477]
[1758337780008,4.08833232,238.56,238.53,4.19234477]
[1758337780390,1.26246817,238.56,238.53,4.19234477]
[1758337780796,33.17246817,238.56,238.53,4.19234477]
[1758337780995,0.71,238.55,238.53,4.19234477]
[1758337781309,32.46246817,238.56,238.53,4.19234477]
[1758337781491,33.17246817,238.56,238.53,4.19234477]
[1758337781687,1.26246817,238.55,238.53,4.19234477]
[1758337781988,1.26246817,238.55,238.52,4.19252054]
[1758337782210,1.26246817,238.55,238.52,4.90252054]
[1758337784312,1.26246817,238.55,238.49,10.48261981]
[1758337784313,1.97246817,238.55,238.51,0.71]
[1758337785609,1.26246817,238.55,238.52,4.90252054]
[1758337788606,1.26246817,238.54,238.49,14.67566773]
[1758337788809,1.26246817,238.53,238.5,0.71]
[1758337789011,1.26246817,238.51,238.47,4.19332522]
[1758337789195,1.26246817,238.48,238.47,4.19332522]
[1758337789404,1.26246817,238.48,238.45,4.19358225]
[1758337789707,1.26246817,238.46,238.45,4.19358225]
[1758337790295,1.26246817,238.47,238.45,4.19358225]
[1758337790515,1.26246817,238.47,238.44,4.19392719]
[1758337790691,1.26246817,238.47,238.44,4.90392719]
[1758337790899,1.26246817,238.45,238.42,4.19415068]
[1758337791513,1.26246817,238.45,238.42,4.90415068]
[1758337792712,1.97246817,238.46,238.42,4.90415068]
[1758337793996,35.39316072,238.49,238.42,4.19415068]
[1758337794311,1.26246817,238.46,238.42,4.90415068]
[1758337796118,1.26246817,238.46,238.41,4.19445493]
[1758337796319,1.26246817,238.46,238.43,0.67]
[1758337797412,1.26246817,238.46,238.43,4.86404462]
[1758337797930,1.97246817,238.47,238.43,4.86404462]
[1758337798723,1.26246817,238.47,238.44,0.67]
[1758337798918,1.26246817,238.48,238.44,0.67]
[1758337799118,1.26246817,238.48,238.45,0.67]
[1758337799311,32.46246817,238.49,238.41,15.94306042]
[1758337799507,32.46246817,238.49,238.46,0.67]
[1758337800312,1.97246817,238.5,238.46,0.67]
[1758337800506,32.46246817,238.51,238.46,0.67]
[1758337800698,0.71,238.5,238.46,0.67]
[1758337800903,31.2,238.49,238.46,4.86347965]
[1758337801101,33.17246817,238.49,238.46,4.19347965]
[1758337801711,1.97246817,238.48,238.41,12.41860549]
[1758337801907,0.71,238.47,238.42,0.67]
[1758337802106,0.71,238.46,238.42,0.67]
[1758337802318,1.26246817,238.47,238.43,0.67]
[1758337802518,1.97246817,238.47,238.43,0.67]
[1758337802830,0.71,238.46,238.41,15.35059225]
[1758337803003,1.26246817,238.47,238.42,0.67]
[1758337803207,1.97246817,238.47,238.43,0.67]
[1758337803707,1.26246817,238.48,238.44,0.67]
[1758337804104,32.46246817,238.5,238.45,0.67]
[1758337804435,32.46246817,238.52,238.45,1.93246817]
[1758337804614,32.46246817,238.52,238.46,0.67]
[1758337804807,32.46246817,238.52,238.47,4.19339958]
[1758337805007,33.17246817,238.52,238.47,4.86339958]
[1758337805414,33.17246817,238.52,238.47,4.19339958]
[1758337805613,33.17246817,238.52,238.48,0.67]
[1758337805819,31.2,238.51,238.48,0.67]
[1758337806024,31.91,238.51,238.47,4.19339958]
[1758337806526,33.17246817,238.51,238.47,4.19339958]
[1758337806732,1.97246817,238.5,238.42,10.48541356]
[1758337806933,1.26246817,238.48,238.43,0.67]
[1758337807120,1.97246817,238.48,238.43,0.67]
[1758337807819,1.97246817,238.48,238.43,4.86410309]
[1758337808837,1.97246817,238.48,238.44,0.67]
[1758337809451,1.97246817,238.48,238.44,4.86383384]
[1758337811622,0.71,238.47,238.43,4.19410271]
[1758337811822,0.71,238.47,238.43,4.86410271]
[1758337812406,1.97246817,238.47,238.43,4.86410271]
[1758337813016,1.26246817,238.47,238.44,0.67]
[1758337813421,1.26246817,238.47,238.44,4.86388559]
[1758337814215,1.26246817,238.48,238.45,0.67]
[1758337814535,0.71,238.5,238.46,0.67]
[1758337814724,1.26246817,238.49,238.46,0.67]
[1758337816423,1.26246817,238.49,238.45,4.19364957]
[1758337816623,1.97246817,238.49,238.45,4.86364957]
[1758337816825,1.26246817,238.48,238.45,4.86364957]
[1758337818632,1.26246817,238.48,238.43,4.19410309]
[1758337818830,1.26246817,238.48,238.44,0.67]
[1758337819135,1.26246817,238.48,238.45,0.67]
[1758337820143,1.26246817,238.48,238.45,4.1936863]
[1758337820338,1.97246817,238.48,238.45,4.1936863]
[1758337820923,1.97246817,238.48,238.45,4.8636863]
[1758337821455,1.26246817,238.48,238.45,4.8636863]
[1758337822340,1.97246817,238.48,238.45,4.8636863]
[1758337822819,1.97246817,238.48,238.43,4.86410309]
[1758337823019,1.97246817,238.48,238.44,0.67]
[1758337823540,1.26246817,238.47,238.44,0.67]
[1758337824420,1.26246817,238.47,238.44,4.86386113]
[1758337825534,2.82108064,238.5,238.44,4.19386113]
[1758337825723,1.26246817,238.48,238.45,0.68]
[1758337826318,1.26246817,238.47,238.44,4.19386113]
[1758337826524,1.26246817,238.47,238.44,4.87386113]
[1758337827737,1.97249414,238.47,238.44,4.87386113]
[1758337829238,1.97249414,238.47,238.43,4.19410309]
[1758337829420,1.97249414,238.47,238.44,0.68]
[1758337829626,1.97249414,238.48,238.44,0.68]
[1758337829927,1.97249414,238.48,238.45,0.68]
[1758337830842,2.67249414,238.48,238.45,4.87364739]
[1758337831040,5.49824042,238.48,238.45,4.87364739]
[1758337831246,1.97249414,238.46,238.42,36.914279]
[1758337831542,2.67249414,238.46,238.42,36.914279]
[1758337832134,2.67249414,238.46,238.42,36.234279]
[1758337832334,2.67249414,238.46,238.43,4.19394898]
[1758337832733,2.67249414,238.46,238.43,4.87394898]
[1758337833030,1.97249414,238.46,238.43,4.87394898]
[1758337833432,4.79824042,238.46,238.43,4.87394898]
[1758337834233,2.82574628,238.45,238.43,4.87394898]
[1758337835645,2.82574628,238.45,238.44,0.68]
[1758337835955,1.97249414,238.46,238.44,0.68]
[1758337836123,2.82574628,238.45,238.43,4.19394898]
[1758337836321,2.82574628,238.45,238.43,4.87394898]
[1758337838135,2.82574628,238.46,238.43,4.87394898]
[1758337838337,2.82574628,238.45,238.44,0.68]
[1758337838637,2.82574628,238.46,238.43,4.19394898]
[1758337838824,2.82574628,238.45,238.43,4.87394898]
[1758337839027,2.82574628,238.46,238.43,4.87394898]
[1758337839235,2.82574628,238.45,238.43,4.87394898]
[1758337839432,2.82574628,238.46,238.43,4.87394898]
[1758337839650,2.82574628,238.45,238.43,4.87394898]
[1758337839863,2.67249414,238.44,238.31,0.1]
[1758337840035,2.82574628,238.43,238.38,0.68]
[1758337840237,2.82574628,238.43,238.39,32.04]
[1758337840448,4.79824042,238.43,238.39,32.04]
[1758337840662,4.79824042,238.43,238.4,0.68]
[1758337841255,1.97249414,238.43,238.4,0.68]
[1758337844451,1.97249414,238.42,238.4,0.68]
[1758337844755,1.97249414,238.42,238.39,36.91474009]
[1758337844951,1.97249414,238.42,238.39,36.23474009]
[1758337845455,1.97249414,238.42,238.4,0.68]
[1758337846958,2.67249414,238.43,238.4,0.68]
[1758337847141,1.97249414,238.42,238.4,0.68]
[1758337848461,2.67249414,238.42,238.38,0.68]
[1758337848644,1.97249414,238.4,238.38,32.04]
[1758337848843,2.67249414,238.39,238.35,4.1955108]
[1758337849163,2.67249414,238.38,238.36,32.04]
[1758337850454,1.97249414,238.37,238.36,32.04]
[1758337850970,1.97249414,238.37,238.33,4.19570223]
[1758337851168,36.09497269,238.39,238.34,32.72]
[1758337851454,1.97249414,238.36,238.34,32.72]
[1758337851754,1.97249414,238.36,238.34,32.04]
[1758337852537,1.97249414,238.35,238.34,32.04]
[1758337854665,2.67249414,238.35,238.31,0.1]